Cogmind - Beta 13 @@@ ROGUE MODE // 2024.04.21 @ 20:18:49 Player: ThatBishHoly Result: Destroyed by G-34 Mercenary with Small Laser Performance ------------- Evolutions (1) 500 Regions Visited (3) 600 Robots Destroyed (37) 185 Value Destroyed (855) 855 Prototype IDs (2) 40 Alien Tech Used (0) 0 Bonus (43) 43 TOTAL SCORE: 2223 Bonus ------- High Alert Combat Kills 12 Follower Combat Kills 66 Friendly Fire -35 Cogmind --------- Core Integrity 0/400 Matter 62/300 Energy 298/300 System Corruption 6% Temperature Cool (16) Movement Walking (120) Location -9/Materials Parts ------- > --- POWER (1) -------- (None) > --- PROPULSION (4) --- Improved Aluminum Leg > --- UTILITY (2) ------ Large Battery > --- WEAPON (2) ------- (None) > --- INVENTORY (5) ---- Improved Treads Improved Hover Unit Signal Generator Peak State ------------ > --- POWER ------------ Light Deuterium Engine > --- PROPULSION ------- Carbon-fiber Leg Improved Hover Unit > --- UTILITY ---------- Improved Heat Sink Visual Processing Unit > --- WEAPON ----------- Spread Laser Mini Grenade Launcher > --- INVENTORY -------- Light Deuterium Engine Improved Hover Unit Large Battery Signal Generator [Rating: 18] Favorites ----------- Power Light Deuterium Engine Engine Light Deuterium Engine Power Core Light Nuclear Core Propulsion Improved Hover Unit Treads Light Treads Leg Carbon-fiber Leg Hover Unit Improved Hover Unit Utility Visual Processing Unit Device Improved Heat Sink Storage Large Battery Processor Visual Processing Unit Weapon Spread Laser Energy Gun Spread Laser Ballistic Gun Assault Rifle Launcher Mini Grenade Launcher Build | -11 -10 -10 -9 ------- Run | Yrd Mat Min Mat Slots Evolved 2 | . . . 2 Power . | . . . . Propulsion 2 | . . . 2 Utility . | . . . . Weapon . | . . . . Parts Attached 30 | 5 11 2 12 Power 6 | 1 1 . 4 Engine 5 | 1 . . 4 Core 1 | . 1 . . Reactor . | . . . . Propulsion 10 | 2 3 2 3 Treads 3 | 2 1 . . Leg 3 | . . . 3 Wheel . | . . . . Hover 4 | . 2 2 . Flight . | . . . . Utility 6 | . 3 . 3 Device 2 | . . . 2 Storage 2 | . 1 . 1 Processor 2 | . 2 . . Hackware . | . . . . Protection . | . . . . Artifact . | . . . . Weapon 8 | 2 4 . 2 Energy Gun 3 | 1 2 . . Energy Cannon . | . . . . Ballistic Gun 2 | 1 1 . . Ballistic Cannon . | . . . . Launcher 3 | . 1 . 2 Special Weapon . | . . . . Impact Weapon . | . . . . Slashing Weapon . | . . . . Piercing Weapon . | . . . . Special Melee Weapon . | . . . . Unidentified Prototypes . | . . . . Parts Lost 16 | . 4 2 10 Power 4 | . 1 1 2 Propulsion 6 | . 2 1 3 Utility 2 | . . . 2 Weapon 4 | . 1 . 3 Highest Loss Streak 4 | . 4 2 3 To Critical Strikes . | . . . . Average Slot Usage (%) 72 | . 74 81 68 Engine 6 | . 4 . 9 Core 3 | . 8 1 . Treads 5 | . 14 . . Leg 4 | . . . 8 Hover 10 | . 5 22 9 Device 2 | . . . 5 Storage 3 | . 5 . 3 Processor 13 | . 8 28 12 Energy Gun 14 | . 16 28 9 Ballistic Gun 2 | . 7 . . Launcher 5 | . 4 . 9 Naked Turns . | . . . . Heaviest Build 13 | 9 12 11 13 Greatest Support 40 | 40 40 14 25 Greatest Overweight (x) 3 | . 3 . 1 Average Overweight (x) . | . . . . Largest Inventory Capacity 5 | 5 5 5 5 Average Capacity 5 | 5 5 5 5 Most Carried 5 | 4 5 4 5 Average Carried 2 | . 1 3 3 Final Capacity 5 | 5 5 5 5 Final Carried 4 | . 4 3 3 Class Distribution -------------------- 97% | Mutant Dominant Class ---------------- Mutant | -10/Materials Mutant | -10/Mines Mutant | -9/Materials Resources | -11 -10 -10 -9 ----------- Run | Yrd Mat Min Mat Matter Collected 614 | 193 201 62 158 Remotely . | . . . . Salvage Created 599 | . 263 65 271 Parts 74 | . 30 8 36 Haulers Intercepted 1 | . 1 . . Recyclers Shooed 2 | . 1 . 1 Parts Field Recycled . | . . . . Retrieved Matter . | . . . . Parts Self-Destructed . | . . . . Prevented . | . . . . Kills | -11 -10 -10 -9 ------- Run | Yrd Mat Min Mat Combat Hostiles Destroyed 26 | . 8 3 15 Guns 6 | . 2 3 1 AOE 20 | . 6 . 14 Classes Destroyed 9 | . 6 . 3 Builder 3 | . . . 3 Hauler 1 | . 1 . . Recycler 1 | . 1 . . Mechanic 1 | . 1 . . Operator 2 | . . . 2 Watcher 3 | . 2 . 1 Swarmer 12 | . 3 1 8 Grunt 10 | . 5 2 3 Sentry 4 | . . . 4 Best Kill Streak 9 | . 9 2 6 Combat Bots Only 7 | . 7 2 4 Max Kills in Single Turn 4 | . 3 2 4 Gunslinging 1 | . . 1 . Exploded 4 | . 2 . 4 Melee . | . . . . Uniques/NPCs Destroyed . | . . . . Combat | -11 -10 -10 -9 -------- Run | Yrd Mat Min Mat Hostile Shots Fired 235 | . 85 17 133 Missed 88 | . 25 6 57 Damage Taken 1916 | . 680 129 1107 Core 582 | . 151 24 407 Absorbed by Shields . | . . . . Core Remaining (%) 65 | 100 . 30 . Volleys Fired 56 | . 23 7 26 Largest 2 | . 2 2 2 Hottest 130 | . 80 130 130 Shots Fired 92 | . 36 14 42 Gun 55 | . 28 14 13 Cannon . | . . . . Launcher 37 | . 8 . 29 Special . | . . . . Kinetic 9 | . 9 . . Thermal 46 | . 19 14 13 Explosive 37 | . 8 . 29 Electromagnetic . | . . . . Robot Hit Streak 12 | . 9 12 3 Robot Miss Streak 9 | . 3 9 6 Penetration Max . | . . . . Secondary Targets 1 | . . 1 . Max Gunslinging Chain 1 | . . 1 . Shots Hit Robots 47 | . 14 13 20 Core Hits 90 | . 30 19 41 Critical Kills . | . . . . Critical Parts Destroyed . | . . . . Critical Strikes 1 | . 1 . . Burn 1 | . 1 . . Melee Attacks . | . . . . Impact . | . . . . Slashing . | . . . . Piercing . | . . . . Sneak Attacks . | . . . . Combat Hostiles . | . . . . Follow-up Attacks . | . . . . Damage Inflicted 2423 | . 705 194 1524 Guns 453 | . 150 190 113 Cannons . | . . . . Explosions 1920 | . 547 . 1373 Melee . | . . . . Ramming 50 | . 8 4 38 Kinetic 38 | . 38 . . Thermal 415 | . 112 190 113 Explosive 1920 | . 547 . 1373 Electromagnetic . | . . . . Impact . | . . . . Slashing . | . . . . Piercing . | . . . . Highest Corruption 6 | . 2 2 6 Average Corruption 3 | . 1 2 5 Corruption Purged . | . . . . Corruption Blocked . | . . . . Effects 22 | . 6 2 14 Message Errors 3 | . . . 3 Matter Fused 1 | . 1 . . Heat Flow Errors 4 | . 1 1 2 Energy Discharges 2 | . 1 . 1 Parts Rejected 4 | . . . 4 Data Loss (minor) 3 | . . . 3 Data Loss (major) 1 | . 1 . . Alerts 2 | . 1 1 . Weapon Failures 2 | . 1 . 1 Overload Shots . | . . . . Overflow Damage 3 | . . . 3 Projectiles . | . . . . Explosions 3 | . . . 3 Melee . | . . . . Knockbacks . | . . . . Impact . | . . . . Kinetic . | . . . . Secondary . | . . . . Self-Inflicted Damage 112 | . 8 2 102 Shots 3 | . . . 3 Rammed 2 | . . 2 . Targets Rammed 2 | . . 2 . Kicked . | . . . . Crushed . | . . . . Highest Temperature 207 | . 177 207 193 Average Temperature 67 | . 52 86 69 Received Heat Transfer 693 | . 267 51 375 Siege Activations . | . . . . Robots Corrupted . | . . . . Combat Hostiles . | . . . . Parts Fried . | . . . . Impact Corruptions . | . . . . Robots Melted . | . . . . Combat Hostiles . | . . . . Parts Melted 1 | . . . 1 Heat Transferred 797 | . 407 250 140 Parts Sabotaged . | . . . . Parts Stolen . | . . . . Parts Stripped . | . . . . Power Chain Reactions . | . . . . Alert | -11 -10 -10 -9 ------- Run | Yrd Mat Min Mat Peak Influence 601 | . 250 124 601 Initial 48 | . . 19 48 Average 196 | . 128 75 297 Maximum Alert Level 2 | . 1 . 2 Low Security (%) 53 | 100 53 100 37 Level 1 35 | . 46 . 39 Level 2 10 | . . . 23 Level 3 . | . . . . Level 4 . | . . . . Level 5 . | . . . . High Security . | . . . . Max Security . | . . . . Squads Dispatched 4 | . 1 1 2 Investigation 2 | . 1 . 1 Extermination . | . . . . Reinforcement 1 | . . . 1 Assault 1 | . . 1 . Garrison . | . . . . Intercept . | . . . . Searches Triggered . | . . . . Construction Impeded . | . . . . Haulers Reinforced . | . . . . Active Scanning Responses . | . . . . Cargo Convoy Interrupts . | . . . . Stealth | -11 -10 -10 -9 --------- Run | Yrd Mat Min Mat Distress Signals 5 | . 2 . 3 Communications Jammed . | . . . . Distress Signals . | . . . . Times Spotted 49 | . 14 5 30 Peak Tracking Total 7 | . 7 3 5 Tactical Retreats 2 | . . . 2 Traps | -11 -10 -10 -9 ------- Run | Yrd Mat Min Mat Traps Triggered 2 | . 2 . . Indirectly . | . . . . Trap Hack Attempts . | . . . . Triggered . | . . . . Disarmed . | . . . . Reprogrammed . | . . . . Reused . | . . . . Traps Extracted . | . . . . Installed . | . . . . Triggered . | . . . . Machines | -11 -10 -10 -9 ---------- Run | Yrd Mat Min Mat Machines Disabled 6 | . 3 . 3 Max in Single Turn 2 | . 2 . 1 Machines Repaired . | . . . . Machines Dismantled . | . . . . Machines Sabotaged . | . . . . Overloaded Fab Kills . | . . . . Hacking | -11 -10 -10 -9 --------- Run | Yrd Mat Min Mat Machines Accessed 4 | . 1 . 3 Terminals 3 | . 1 . 2 Fabricators . | . . . . Repair Stations . | . . . . Recycling Units 1 | . . . 1 Scanalyzers . | . . . . Garrison Access . | . . . . Total Hacks 12 | . 4 . 8 Successful 6 | . 2 . 4 Failed 6 | . 2 . 4 Catastrophic 1 | . . . 1 Database Lockouts . | . . . . Manual . | . . . . Terminals 8 | . 4 . 4 Fabricators . | . . . . Repair Stations . | . . . . Recycling Units 4 | . . . 4 Scanalyzers . | . . . . Garrison Access . | . . . . Terminal Hacks 5 | . 2 . 3 Prototype ID Bank 1 | . 1 . . Alert Level 2 | . 1 . 1 Dispatch Records 1 | . . . 1 Transport Status 1 | . . . 1 Fabricator Hacks . | . . . . Repair Station Hacks . | . . . . Recycling Unit Hacks 1 | . . . 1 Report Inventory 1 | . . . 1 Scanalyzer . | . . . . Garrison Access Hacks . | . . . . Unauthorized Hacks . | . . . . Terminals . | . . . . Fabricators . | . . . . Repair Stations . | . . . . Recycling Units . | . . . . Scanalyzers . | . . . . Garrison Access . | . . . . Data Cores Recovered 1 | . . . 1 Used . | . . . . Hacking Detections 3 | . 1 . 2 Full Trace Events 2 | . 1 . 1 Feedback Events . | . . . . Feedback Blocked . | . . . . Robot Schematics Acquired . | . . . . Robots Built . | . . . . Authchips . | . . . . Time . | . . . . Total Robot Build Rating . | . . . . Part Schematics Acquired . | . . . . Parts Built . | . . . . Authchips . | . . . . Time . | . . . . Total Part Build Rating . | . . . . Parts Repaired . | . . . . Time . | . . . . Parts Recycled . | . . . . Recycled Matter . | . . . . Retrieved Matter . | . . . . Retrieved Components . | . . . . Parts Scanalyzed . | . . . . Part Schematics Acquired . | . . . . Parts Damaged . | . . . . Bothacking | -11 -10 -10 -9 ------------ Run | Yrd Mat Min Mat Used RIF Installer . | . . . . Robots Hacked . | . . . . Non-combat . | . . . . Combat . | . . . . Robot Hacks Applied . | . . . . Relay Couplers Released . | . . . . Fabnet Peak Effective % . | . . . . Robots Rewired . | . . . . Allies Hacked . | . . . . Hacks Repelled . | . . . . Allies | -11 -10 -10 -9 -------- Run | Yrd Mat Min Mat Total Allies 1 | . . 1 . Largest Group 1 | . . 1 1 Highest-Rated Group 31 | . . 31 31 Highest-Rated Ally 31 | . . 31 31 Total Orders . | . . . . Ally Attacks 11 | . . 2 9 Total Damage 166 | . . 41 125 Kills 5 | . . 2 3 Allies Corrupted . | . . . . Allies Melted . | . . . . Intel | -11 -10 -10 -9 ------- Run | Yrd Mat Min Mat Robot Analysis Total . | . . . . Derelict Logs Recovered 1 | . . 1 . Drone Launches . | . . . . Drone Recoveries . | . . . . Exploration | -11 -10 -10 -9 ------------- Run | Yrd Mat Min Mat Turns Passed 1451 | 57 512 197 685 Spaces Moved 1242 | 35 342 265 600 Core 27 | 7 20 . . Treads 210 | 28 182 . . Legs 278 | . . . 278 Wheels . | . . . . Hover 727 | . 140 265 322 Flight . | . . . . Fastest Speed 50 | 50 56 56 56 Average Speed 97 | 138 124 57 98 Slowest Speed 200 | 160 200 60 120 Overloaded Moves . | . . . . Propulsion Burnouts . | . . . . Robots Hopped . | . . . . Cave-ins Triggered . | . . . . Exploration Rate (%) 36 | 5 46 48 47 Regions Visited 3 Branch Regions 1 Pre-discovered Areas 1 | . . 1 . Known Exits Taken 2 | . 1 1 . Unknown Exits Taken 1 | 1 . . . Scrap Searched . | . . . . Spaces Dug . | . . . . Terrain Destroyed 175 | . 10 . 165 Melee . | . . . . Projectile . | . . . . AOE 175 | . 10 . 165 Terrain Rammed 4 | . 1 . 3 Walls Destroyed . | . . . . Machines Disabled 1 | . . . 1 Actions | -11 -10 -10 -9 --------- Run | Yrd Mat Min Mat Total 1383 | 44 392 295 652 Wait 18 | . . 18 . Move 1239 | 34 341 264 600 Hop . | . . . . Pick Up 29 | 5 12 1 11 Fast Attach 1 | . 1 . . Attach 23 | 5 7 1 10 Detach 1 | . 1 . . Swap 6 | . 3 1 2 Drop 4 | . 3 1 . Fire 56 | . 23 7 26 Melee . | . . . . Ram 6 | . 1 2 3 Kick . | . . . . Crush . | . . . . Escape Stasis . | . . . . Rewire . | . . . . Trap . | . . . . Miscellaneous . | . . . . Route ------- -11/Scrapyard -10/Materials -10/Mines -9/Materials History --------- Turn | Location | Event 6 | -11/Scrapyard | Discovered new exit (range 16) 58 | -11/Scrapyard | Entered Materials 171 | -10/Materials | Discovered new exit (range 7) 240 | -10/Materials | Destroyed 7 combat bots 241 | -10/Materials | Core integrity fell below 50% 267 | -10/Materials | Lost 4 parts (1p2n1w) 302 | -10/Materials | Build established: Mutant 567 | -10/Materials | Identified exit to Mines 570 | -10/Materials | Entered Mines 588 | -10/Mines | Learned location of Mines (-8) 651 | -10/Mines | Met a Derelict testing a Signal Generator 662 | -10/Mines | Found Signal Generator 752 | -10/Mines | Discovered new exit (range 7) 766 | -10/Mines | Identified exit to Materials 767 | -10/Mines | Entered Materials 767 | -9/Materials | Accompanied by 1 ally 767 | -9/Materials | Evolved 2 slots: Propulsion x2 1415 | -9/Materials | Lost 3 parts (1p1n1w) 1418 | -9/Materials | Core integrity fell below 50% 1446 | -9/Materials | Core integrity fell below 20% 1452 | -9/Materials | Destroyed by G-34 Mercenary with Small Laser Last Messages --------------- 01383_ 2V 01409_ O-16 Technician: "IFF HANDSHAKE FAILED. SECURING TERMINAL." 01415_ ALERT: Hostiles spotted, dispatching reinforcements to Terminal M002. 01421_ Aluminum Leg destroyed. 01424_ Acquired Imp. Treads. 01426_ Acquired Hpw. Tractor Beam. 01427_ Discarded Broken Visual Processing Unit. 01435_ Lgt. Deuterium Engine destroyed. 01443_ System corrupted: Hpw. Tractor Beam rejected. Map ----- +----------------------------------------------------+ | ???????????????????????? ???# #??###+## | | ???????????????????????? ???# #### | | ???????????????????????? ???# | | ???????????????????????? ???# #??# T | | ???????????????????????? ???# #??# | | ???????????????????????? ???# #??# | | ????????????????????????#/#???# #??## # | | ?????????????????######## #???# #??## # | | ?????????????????T # #???# #??# | | ???????????????#?? # #???# #??# | | ???????????????# ? # #####+#### # | | ???????????????# """ # / # | | ???????????????# """"" # # """ # | | ???????????????# """"" # # """ | | ??????????????## """"" / # """ | | ??????????????# """ # # | | ???????????????# # # | | ?????????????#######+#### + " " # | | ?????????????# ### # "R" ### | | ?????????????# ^ # """ # | | ?????????????# ############### | | ?????????????# " gYgY #?????????????? | | ?????????????# T ! #############?? | | ?????????????# " ? | | ?????????????# ? | | ?????????????# @ ! g ? | | ?????????????# #######+############???? | | ?????????????# #?# #??????????? | | ???????????? #?# "S #??????????? | | ?????????? #?# """ #??????????? | | ????????? #?# "" #??????????? | | ??????? ######?# """ #??????????? | | ??????### ???????# """ #??????????? | | ???????# ????????# """ #??????????? | | ??????# ?????????# #??????????? | | ??????# ??????????###########??????????? | | ??????# ???????????????????????????????? | | ??????? ????????????????????????????????? | | ????????????????????????????????????????? | | ????????????????????????????????????????? | | ????????????????????????????????????????? | | ????????????????????????????????????????? | | ????????????????????????????????????????? | | ????????????????????????????????????????? | | | | | | | | | | | | | +----------------------------------------------------+ Best States ------------- Heat Dissipation 42 Energy Generation 14 Energy Capacity 360 Matter Stores 300 Matter Capacity 300 Sight Range 18 Terrain Scan Density 10 Evasion (%) 55 Recoil Reduction 2 Item Schematics ----------------- None Robot Schematics ------------------ None Fabricated ------------ Nothing Alien Tech Used ----------------- None Achievements -------------- None Challenges ------------ None Game ------ Seed EtherialGravmagClaws Manual? 0 Play Time 00:19:19 Cumulative 10.6 hours Start 2024.04.21 @ 20:00:18 End 2024.04.21 @ 20:18:49 Sessions 1 Manual Loads 0 Difficulty Rogue Special Mode None Game No. 30 Rogue 30 Adventurer 0 Explorer 0 Win Type - Total 0 Types 0/0/0/0/0/0/0/0/0 Lore% 12 Gallery% 22 Achievement% 19 Wizard Run 0 Options --------- Layout 1 ASCII 0 Keyboard 0 Movement Arrows Keybinds 0 Fullscreen 1 Font 16/SmallcapsGlow Map View 50x40 Zoom Use 0% Tactical HUD 1 Map Filters NONE Filters NONE Steam SD RUN: d62abbeb-4161-42f4-b29b-318615ea9332